Cogmind - Beta 13 @@@ ROGUE MODE // 2024.04.13 @ 23:18:29 Player: Morphaana Result: Destroyed by G-67 Veteran with Plasma Rifle Performance ------------- Evolutions (4) 2000 Regions Visited (5) 1000 Robots Destroyed (92) 460 Value Destroyed (2730) 2730 Prototype IDs (3) 60 Alien Tech Used (0) 0 Bonus (64) 64 TOTAL SCORE: 6314 Bonus ------- High Alert Combat Kills 64 Cogmind --------- Core Integrity 0/850 Matter 290/300 Energy 100/100 System Corruption 1% Temperature Cool (0) Movement Core (200) Ox3 Location -6/Factory Parts ------- > --- POWER (1) -------- (None) > --- PROPULSION (5) --- (None) > --- UTILITY (7) ------ Medium Storage Unit Improved Signal Interpreter Hacking Suite > --- WEAPON (2) ------- (None) > --- INVENTORY (10) --- Micro Nuclear Core Micro Nuclear Core Large Storage Unit Improved Sensor Array Advanced ECM Suite Hacking Suite Heavy Assault Rifle Grenade Launcher Scythe Peak State ------------ > --- POWER ------------ Micro Nuclear Core > --- PROPULSION ------- VTOL Module Xenon Bombardment Thruster Xenon Bombardment Thruster Xenon Bombardment Thruster Xenon Bombardment Thruster > --- UTILITY ---------- Medium Storage Unit Improved Sensor Array Improved Signal Interpreter Hacking Suite Hacking Suite Hacking Suite System Guard > --- WEAPON ----------- Light Assault Rifle Heavy Assault Rifle > --- INVENTORY -------- Micro Nuclear Core Micro Nuclear Core Xenon Bombardment Thruster Large Storage Unit Improved Sensor Array Improved Terrain Scanner Advanced ECM Suite Hacking Suite Grenade Launcher Scythe [Rating: 49] Favorites ----------- Power Ion Engine Engine Ion Engine Power Core Micro Nuclear Core Propulsion Light Treads Treads Light Treads Leg Aluminum Leg Flight Unit Xenon Bombardment Thruster Utility Large Storage Unit Device Improved Sensor Array Storage Large Storage Unit Processor Signal Interpreter Hackware Hacking Suite Protection Medium Armor Plating Weapon Assault Rifle Energy Gun Small Laser Energy Cannon Ion Cannon Ballistic Gun Assault Rifle Launcher Grenade Launcher Slashing Weapon Scythe Build | -11 -10 -9 -8 -7 -6 ------- Run | Yrd Mat Mat Mat Fac Fac Slots Evolved 8 | . . 2 2 2 2 Power . | . . . . . . Propulsion 3 | . . 1 1 . 1 Utility 5 | . . 1 1 2 1 Weapon . | . . . . . . Parts Attached 108 | 6 16 29 42 9 6 Power 10 | 1 1 4 4 . . Engine 7 | 1 1 4 1 . . Core 3 | . . . 3 . . Reactor . | . . . . . . Propulsion 29 | 2 4 4 14 3 2 Treads 18 | 2 2 4 10 . . Leg 2 | . 2 . . . . Wheel . | . . . . . . Hover . | . . . . . . Flight 9 | . . . 4 3 2 Utility 35 | 1 9 10 7 5 3 Device 10 | . 2 3 2 1 2 Storage 9 | 1 6 1 1 . . Processor 4 | . 1 1 1 . 1 Hackware 5 | . . . 1 4 . Protection 7 | . . 5 2 . . Artifact . | . . . . . . Weapon 34 | 2 2 11 17 1 1 Energy Gun 6 | . . 2 4 . . Energy Cannon 1 | . . . 1 . . Ballistic Gun 20 | 2 2 8 7 . 1 Ballistic Cannon . | . . . . . . Launcher 5 | . . 1 4 . . Special Weapon . | . . . . . . Impact Weapon . | . . . . . . Slashing Weapon 2 | . . . 1 1 . Piercing Weapon . | . . . . . . Special Melee Weapon . | . . . . . . Unidentified Prototypes 3 | . . 2 1 . . Parts Lost 41 | . 3 11 14 2 11 Power 5 | . 1 1 2 . 1 Propulsion 16 | . 2 3 6 . 5 Utility 11 | . . 3 2 2 4 Weapon 9 | . . 4 4 . 1 Highest Loss Streak 11 | . 2 4 6 2 11 To Critical Strikes . | . . . . . . Average Slot Usage (%) 90 | . 85 94 89 99 83 Engine 8 | . 14 9 . . . Core 2 | . . . 7 7 5 Treads 24 | . 18 32 26 . . Flight 3 | . . . 5 30 25 Device 4 | . 3 1 7 7 9 Storage 9 | . 9 11 9 7 6 Processor 9 | . 8 10 9 7 6 Hackware 1 | . . . 1 22 18 Protection 4 | . . 7 6 . . Energy Gun 2 | . . 3 3 . . Ballistic Gun 19 | . 28 18 10 14 9 Naked Turns . | . . . . . . Heaviest Build 40 | 13 29 38 40 22 22 Greatest Support 82 | 40 40 60 82 24 28 Greatest Overweight (x) 6 | . 6 1 6 . 3 Average Overweight (x) . | . . . . . . Largest Inventory Capacity 15 | 8 15 15 15 10 10 Average Capacity 12 | 7 9 15 14 10 10 Most Carried 15 | . 8 15 15 10 10 Average Carried 10 | . 4 13 13 9 9 Final Capacity 15 | 8 15 15 10 10 10 Final Carried 14 | . 8 14 10 10 9 Class Distribution -------------------- 71% | Mutant 17% | Scavenger-Mutant 4% | Hacker-Sprinter Dominant Class ---------------- Mutant | -10/Materials Mutant | -9/Materials Scavenger-Mutant | -8/Materials Hacker-Sprinter | -7/Factory Hacker-Scout | -6/Factory Resources | -11 -10 -9 -8 -7 -6 ----------- Run | Yrd Mat Mat Mat Fac Fac Matter Collected 2531 | 260 455 854 766 137 59 Remotely . | . . . . . . Salvage Created 3151 | . 594 1405 1020 45 87 Parts 211 | . 41 103 63 2 2 Haulers Intercepted 10 | . 1 5 3 . 1 Recyclers Shooed 4 | . . 2 2 . . Parts Field Recycled . | . . . . . . Retrieved Matter . | . . . . . . Parts Self-Destructed . | . . . . . . Prevented . | . . . . . . Kills | -11 -10 -9 -8 -7 -6 ------- Run | Yrd Mat Mat Mat Fac Fac Combat Hostiles Destroyed 60 | . 11 29 19 1 . Guns 47 | . 11 23 12 1 . Cannons 1 | . . . 1 . . AOE 12 | . . 6 6 . . Classes Destroyed 13 | . 4 3 5 1 . Worker 3 | . . 1 2 . . Builder 2 | . . . 1 . 1 Hauler 10 | . 1 5 3 . 1 Recycler 1 | . . . 1 . . Mechanic 1 | . . . 1 . . Operator 4 | . 2 2 . . . Watcher 11 | . 3 5 3 . . Swarmer 13 | . . 9 4 . . Grunt 33 | . 11 11 11 . . Brawler 1 | . . . 1 . . Sentry 11 | . . 9 2 . . Hunter 1 | . . . 1 . . Programmer 1 | . . . . 1 . Best Kill Streak 6 | . 3 6 5 1 2 Combat Bots Only 6 | . 3 6 4 1 . Max Kills in Single Turn 3 | . 1 3 3 1 2 Gunslinging . | . . . . . . Exploded 3 | . . 3 3 . . Melee . | . . . . . . Uniques/NPCs Destroyed . | . . . . . . Combat | -11 -10 -9 -8 -7 -6 -------- Run | Yrd Mat Mat Mat Fac Fac Hostile Shots Fired 592 | . 72 158 224 35 103 Missed 167 | . 20 40 56 25 26 Damage Taken 6247 | . 616 1660 2487 130 1354 Core 1588 | . 169 186 330 45 858 Absorbed by Shields 65 | . . . . . 65 Regen/Repaired (Parts) 42 | . . . 42 . . Core Remaining (%) 63 | 100 32 53 40 93 . Volleys Fired 328 | . 63 122 131 9 3 Largest 2 | . 2 2 2 2 2 Hottest 85 | . 40 76 85 43 43 Shots Fired 593 | . 126 228 215 18 6 Gun 563 | . 126 223 190 18 6 Cannon 12 | . . . 12 . . Launcher 18 | . . 5 13 . . Special . | . . . . . . Kinetic 488 | . 126 195 143 18 6 Thermal 84 | . . 28 56 . . Explosive 18 | . . 5 13 . . Electromagnetic 3 | . . . 3 . . Robot Hit Streak 18 | . 12 18 11 5 4 Robot Miss Streak 10 | . 10 6 6 2 1 Penetration Max . | . . . . . . Secondary Targets 2 | . 1 . 1 . . Max Gunslinging Chain 1 | . 1 . 1 . . Shots Hit Robots 371 | . 74 141 140 11 5 Core Hits 178 | . 32 72 69 4 1 Critical Kills . | . . . . . . Critical Parts Destroyed 2 | . . 1 . . 1 Critical Strikes 3 | . . 1 1 . 1 Burn 1 | . . . 1 . . Destroy 2 | . . 1 . . 1 Melee Attacks 3 | . . . 2 1 . Impact . | . . . . . . Slashing 3 | . . . 2 1 . Piercing . | . . . . . . Sneak Attacks . | . . . . . . Combat Hostiles . | . . . . . . Follow-up Attacks . | . . . . . . Damage Inflicted 5934 | . 858 2062 2570 152 292 Guns 4305 | . 858 1701 1539 152 55 Cannons 224 | . . . 224 . . Explosions 1401 | . . 361 803 . 237 Melee . | . . . . . . Ramming 4 | . . . 4 . . Kinetic 3554 | . 858 1397 1092 152 55 Thermal 937 | . . 304 633 . . Explosive 1401 | . . 361 803 . 237 Electromagnetic 38 | . . . 38 . . Impact . | . . . . . . Slashing . | . . . . . . Piercing . | . . . . . . Highest Corruption 7 | . . 7 . 1 1 Average Corruption 5 | . . 6 . 1 1 Corruption Purged . | . . . . . . Corruption Blocked . | . . . . . . Effects 27 | . . 26 . . 1 Message Errors 8 | . . 8 . . . Matter Fused 5 | . . 5 . . . Heat Flow Errors 3 | . . 3 . . . Energy Discharges 3 | . . 3 . . . Parts Rejected 1 | . . . . . 1 Data Loss (minor) 3 | . . 3 . . . Misfires 2 | . . 2 . . . Weapon Failures 2 | . . 2 . . . Overload Shots . | . . . . . . Overflow Damage 73 | . . . 15 . 58 Projectiles . | . . . . . . Explosions 73 | . . . 15 . 58 Melee . | . . . . . . Knockbacks . | . . . . . . Impact . | . . . . . . Kinetic . | . . . . . . Secondary . | . . . . . . Self-Inflicted Damage 70 | . . . 70 . . Shots 2 | . . . 2 . . Rammed 3 | . 1 . 2 . . Targets Rammed 3 | . 1 . 2 . . Kicked . | . . . . . . Crushed . | . . . . . . Highest Temperature 291 | . 9 189 291 10 18 Average Temperature 70 | . 7 39 93 4 9 Received Heat Transfer 2536 | . 339 597 1080 24 496 Effects 4 | . . . 4 . . Interference 4 | . . . 4 . . Siege Activations . | . . . . . . Robots Corrupted . | . . . . . . Combat Hostiles . | . . . . . . Parts Fried . | . . . . . . Impact Corruptions . | . . . . . . Robots Melted . | . . . . . . Combat Hostiles . | . . . . . . Parts Melted 3 | . . 1 2 . . Heat Transferred 2145 | . . 756 1389 . . Parts Sabotaged . | . . . . . . Parts Stolen . | . . . . . . Parts Stripped . | . . . . . . Power Chain Reactions . | . . . . . . Alert | -11 -10 -9 -8 -7 -6 ------- Run | Yrd Mat Mat Mat Fac Fac Peak Influence 638 | . 222 405 529 252 638 Initial 146 | . . 4 146 89 123 Average 182 | . 34 232 308 165 275 Maximum Alert Level 2 | . 1 2 2 1 2 Low Security (%) 54 | 100 96 39 17 55 64 Level 1 39 | . 3 57 67 44 4 Level 2 5 | . . 2 15 . 30 Level 3 . | . . . . . . Level 4 . | . . . . . . Level 5 . | . . . . . . High Security . | . . . . . . Max Security . | . . . . . . Squads Dispatched 23 | . 4 3 6 8 2 Investigation 11 | . 1 1 3 5 1 Extermination 1 | . . . . 1 . Reinforcement 10 | . 3 2 3 1 1 Assault . | . . . . . . Garrison 1 | . . . . 1 . Intercept . | . . . . . . Searches Triggered . | . . . . . . Construction Impeded 1 | . . . 1 . . Haulers Reinforced . | . . . . . . Active Scanning Responses . | . . . . . . Cargo Convoy Interrupts . | . . . . . . Stealth | -11 -10 -9 -8 -7 -6 --------- Run | Yrd Mat Mat Mat Fac Fac Distress Signals 11 | . 1 6 2 2 . Communications Jammed . | . . . . . . Distress Signals . | . . . . . . Times Spotted 137 | . 21 46 42 18 10 Peak Tracking Total 8 | . 4 6 5 8 7 Tactical Retreats 10 | . . 1 4 4 1 Traps | -11 -10 -9 -8 -7 -6 ------- Run | Yrd Mat Mat Mat Fac Fac Traps Triggered 5 | . 1 1 . 1 2 Indirectly . | . . . . . . Trap Hack Attempts . | . . . . . . Triggered . | . . . . . . Disarmed 6 | . 6 . . . . Reprogrammed 6 | . 6 . . . . Reused . | . . . . . . Traps Extracted . | . . . . . . Installed . | . . . . . . Triggered . | . . . . . . Machines | -11 -10 -9 -8 -7 -6 ---------- Run | Yrd Mat Mat Mat Fac Fac Machines Disabled 30 | . . . 3 . 27 Max in Single Turn 19 | . . . 1 . 19 Machines Repaired . | . . . . . . Machines Dismantled . | . . . . . . Machines Sabotaged . | . . . . . . Overloaded Fab Kills . | . . . . . . Hacking | -11 -10 -9 -8 -7 -6 --------- Run | Yrd Mat Mat Mat Fac Fac Machines Accessed 33 | . 4 8 11 8 2 Terminals 27 | . 4 6 9 6 2 Fabricators . | . . . . . . Repair Stations 1 | . . . 1 . . Recycling Units 3 | . . 1 1 1 . Scanalyzers 2 | . . 1 . 1 . Garrison Access . | . . . . . . Total Hacks 87 | . 10 17 33 23 4 Successful 58 | . 6 11 19 19 3 Failed 29 | . 4 6 14 4 1 Catastrophic 2 | . . . 1 1 . Database Lockouts . | . . . . . . Manual 27 | . 4 8 8 5 2 Terminals 68 | . 10 13 29 12 4 Fabricators . | . . . . . . Repair Stations 2 | . . . 2 . . Recycling Units 6 | . . 1 2 3 . Scanalyzers 11 | . . 3 . 8 . Garrison Access . | . . . . . . Terminal Hacks 22 | . 4 2 10 4 2 Open DSF 1 | . . . . 1 . Emergency Access Points 2 | . 1 1 . . . Alert Level 4 | . . . 3 . 1 Unreport Threat 2 | . . . 2 . . Locate Traps 2 | . 1 . . . 1 Disarm Traps 1 | . 1 . . . . Reprogram Traps 1 | . 1 . . . . Dispatch Records 2 | . . . 2 . . Transport Status 1 | . . . 1 . . Recall Investigation 1 | . . . . 1 . Recall Reinforcements 2 | . . . 1 1 . Hauler Manifests 3 | . . 1 1 1 . Fabricator Hacks . | . . . . . . Repair Station Hacks 2 | . . . 2 . . Scan Component 1 | . . . 1 . . Repair 1 | . . . 1 . . Recycling Unit Hacks 6 | . . 1 2 3 . Report Inventory 4 | . . 1 2 1 . Retrieve Matter 1 | . . . . 1 . Retrieve Components 1 | . . . . 1 . Scanalyzer 11 | . . 3 . 8 . Insert Component 6 | . . 2 . 4 . Analyze 5 | . . 1 . 4 . Garrison Access Hacks . | . . . . . . Unauthorized Hacks 17 | . 2 5 5 4 1 Terminals 17 | . 2 5 5 4 1 Botnet 17 | . 2 5 5 4 1 Fabricators . | . . . . . . Repair Stations . | . . . . . . Recycling Units . | . . . . . . Scanalyzers . | . . . . . . Garrison Access . | . . . . . . Data Cores Recovered . | . . . . . . Used . | . . . . . . Hacking Detections 22 | . 2 5 9 5 1 Full Trace Events 14 | . 2 3 3 5 1 Feedback Events 3 | . . . . 3 . Corruption 1 | . . . . 1 . Hackware Fried 2 | . . . . 2 . Feedback Blocked . | . . . . . . Robot Schematics Acquired . | . . . . . . Robots Built . | . . . . . . Authchips . | . . . . . . Time . | . . . . . . Total Robot Build Rating . | . . . . . . Part Schematics Acquired 5 | . . 1 . 4 . Parts Built . | . . . . . . Authchips . | . . . . . . Time . | . . . . . . Total Part Build Rating . | . . . . . . Parts Repaired 1 | . . . 1 . . Time 38 | . . . 38 . . Parts Recycled . | . . . . . . Recycled Matter . | . . . . . . Retrieved Matter . | . . . . . . Retrieved Components 1 | . . . . 1 . Parts Scanalyzed 5 | . . 1 . 4 . Part Schematics Acquired 5 | . . 1 . 4 . Parts Damaged 1 | . . . . 1 . Bothacking | -11 -10 -9 -8 -7 -6 ------------ Run | Yrd Mat Mat Mat Fac Fac Used RIF Installer . | . . . . . . Robots Hacked . | . . . . . . Non-combat . | . . . . . . Combat . | . . . . . . Robot Hacks Applied . | . . . . . . Relay Couplers Released . | . . . . . . Fabnet Peak Effective % . | . . . . . . Robots Rewired . | . . . . . . Allies Hacked . | . . . . . . Hacks Repelled . | . . . . . . Allies | -11 -10 -9 -8 -7 -6 -------- Run | Yrd Mat Mat Mat Fac Fac Total Allies . | . . . . . . Largest Group . | . . . . . . Highest-Rated Group . | . . . . . . Highest-Rated Ally . | . . . . . . Total Orders . | . . . . . . Ally Attacks . | . . . . . . Total Damage . | . . . . . . Kills . | . . . . . . Allies Corrupted . | . . . . . . Allies Melted . | . . . . . . Intel | -11 -10 -9 -8 -7 -6 ------- Run | Yrd Mat Mat Mat Fac Fac Robot Analysis Total . | . . . . . . Derelict Logs Recovered . | . . . . . . Drone Launches . | . . . . . . Drone Recoveries . | . . . . . . Exploration | -11 -10 -9 -8 -7 -6 ------------- Run | Yrd Mat Mat Mat Fac Fac Turns Passed 6139 | 93 1937 2224 1403 304 178 Spaces Moved 4145 | 56 1071 1068 835 743 372 Core 14 | 4 2 . . . 8 Treads 2497 | 52 898 1068 479 . . Legs 171 | . 171 . . . . Wheels . | . . . . . . Hover . | . . . . . . Flight 1463 | . . . 356 743 364 Fastest Speed 27 | 50 120 160 31 29 27 Average Speed 113 | 152 154 160 106 30 33 Slowest Speed 520 | 160 350 240 520 31 200 Overloaded Moves . | . . . . . . Propulsion Burnouts . | . . . . . . Robots Hopped 7 | . . . 3 4 . Cave-ins Triggered 1 | . . 1 . . . Exploration Rate (%) 45 | 4 99 77 52 26 13 Regions Visited 5 Branch Regions . Pre-discovered Areas . | . . . . . . Known Exits Taken 4 | . 1 1 1 1 . Unknown Exits Taken 1 | 1 . . . . . Scrap Searched . | . . . . . . Spaces Dug 3 | . . . 2 1 . Terrain Destroyed 207 | . . 14 86 1 106 Melee 3 | . . . 2 1 . Projectile 1 | . . . 1 . . AOE 203 | . . 14 83 . 106 Terrain Rammed . | . . . . . . Walls Destroyed . | . . . . . . Machines Disabled . | . . . . . . Actions | -11 -10 -9 -8 -7 -6 --------- Run | Yrd Mat Mat Mat Fac Fac Total 5015 | 61 1236 1360 1140 797 421 Wait 288 | . 58 98 86 31 15 Move 4128 | 55 1070 1067 828 736 372 Hop 5 | . . . 3 2 . Pick Up 70 | . 16 26 21 5 2 Fast Attach 29 | 6 4 6 13 . . Attach 42 | . 5 12 14 7 4 Detach 12 | . 2 3 2 3 2 Swap 37 | . 7 11 15 2 2 Drop 49 | . 10 15 23 1 . Fire 328 | . 63 122 131 9 3 Melee 3 | . . . 2 1 . Ram . | . . . . . . Kick . | . . . . . . Crush 3 | . 1 . 2 . . Escape Stasis 21 | . . . . . 21 Rewire . | . . . . . . Trap . | . . . . . . Miscellaneous . | . . . . . . Route ------- -11/Scrapyard -10/Materials (discovered 6 exits: *Mat x3 / *Min x2 / *Sub) -9/Materials (discovered 3 exits: *Mat x2 / *Min) -8/Materials -7/Factory (discovered 2 exits: *Fac x2) -6/Factory History --------- Turn | Location | Event 6 | -11/Scrapyard | Discovered new exit (range 15) 94 | -11/Scrapyard | Entered Materials 304 | -10/Materials | Build established: Mutant 352 | -10/Materials | Discovered new exit (range 6) 449 | -10/Materials | Discovered new exit (range 12) 699 | -10/Materials | Discovered new exit (range 8) 779 | -10/Materials | Discovered new exit (range 15) 819 | -10/Materials | Discovered new exit (range 15) 835 | -10/Materials | Core integrity fell below 50% 958 | -10/Materials | Identified exit to Materials 1783 | -10/Materials | Discovered new exit (range 7) 1791 | -10/Materials | Identified exit to Subcaves 1995 | -10/Materials | Identified exit to Mines 2031 | -10/Materials | Entered another Materials area 2031 | -9/Materials | Evolved 2 slots: Propulsion x1, Utility x1 2310 | -9/Materials | Discovered new exit (range 14) 2333 | -9/Materials | Identified exit to Materials 2732 | -9/Materials | Discovered new exit (range 7) 2746 | -9/Materials | Identified exit to Mines 3010 | -9/Materials | Discovered exit to Materials (range 16) 3348 | -9/Materials | Crushed by falling debris 3386 | -9/Materials | Lost 4 parts (1n1u2w) 4255 | -9/Materials | Entered another Materials area 4255 | -8/Materials | Evolved 2 slots: Propulsion x1, Utility x1 4344 | -8/Materials | Repaired Lgt. Deuterium Engine 4778 | -8/Materials | Build established: Scavenger-Mutant 4971 | -8/Materials | Lost 6 parts (1p3n1u1w) 5147 | -8/Materials | Core integrity fell below 50% 5650 | -8/Materials | Discovered new exit (range 16) 5658 | -8/Materials | Identified exit to Factory 5658 | -8/Materials | Entered Factory 5658 | -7/Factory | Evolved 2 slots: Utility x2 5679 | -7/Factory | Hacking Suite fried by hacking feedback 5679 | -7/Factory | Hacking Suite fried by hacking feedback 5791 | -7/Factory | Discovered new exit (range 11) 5799 | -7/Factory | Identified exit to Factory 5910 | -7/Factory | Garrison activated, responded to threat 5914 | -7/Factory | Discovered exit to Factory (range 15) 5961 | -7/Factory | Build established: Hacker-Sprinter 5962 | -7/Factory | Entered another Factory area 5962 | -6/Factory | Evolved 2 slots: Propulsion x1, Utility x1 6129 | -6/Factory | Core integrity fell below 50% 6137 | -6/Factory | Core integrity fell below 20% 6140 | -6/Factory | Destroyed by G-67 Veteran with Plasma Rifle Last Messages --------------- Stasis field depleted. K-01 Serf cleans the Pressure Siphon. Hacking Suite destroyed. K-01 Serf cleans the Pressure Siphon. Lgt. Assault Rifle destroyed. Imp. Terrain Scanner destroyed. Xenon Bombardment Thruster destroyed. U-05 Engineer lays Concrete. Mic. Nuclear Core destroyed. Critical hit (Burn: +50). Xenon Bombardment Thruster destroyed. O-24 Administrator: "IFF HANDSHAKE FAILED. SECURING TERMINAL." U-05 Engineer lays Concrete. ALERT: Hostiles spotted, dispatching reinforcements to Terminal F021. Hacking Suite destroyed. Door malfunctions. System corrupted: Broken Xenon Bombardment Thruster rejected. Map ----- +----------------------------------------------------+ | ???????????????? """???????????????????????? | | ????????????????? ^ """"??????????????????????? | | ????????????????? """"??????????????????????? | | ?????????????#??? ??????????????????????? | | ?????????????????? """" ????????????????????? | | ?????????????????? """" ??????????????????? | | ????????????????#?# """" #???????????????????? | | ??????#?#?????#???# #???????????????????? | | ?????############## """" #???????????????????? | | ?????# # """" #???????????????????? | | ?????# # """" #???????????????????? | | ?????# # #??? ???????????????? | | ?????# #! """" #???+###????????????? | | ?????# # ] """" #??? ????????????? | | ?????# "" #]] """" #?? ""?????????????? | | ?????# !!! "" #]] A #? ""R????????????? | | ?????# !! """ # # "" " #?????????? | | ?????# !! """ / # #?????????? | | ?????# """ ######g gg + #?????????? | | ###??# #????# g p# #?????????? | | #! #???## #? ???????????? | | #+########### ####+####+#?????????? | | g ^ #?????????? | | ^ #?????????? | | #?????????? | | ^ @ #?????????? | | #?????????? | | ##########/##### #?????????? | | #???#??? ???? #?????????? | | #??????? ???? #?????????? | | #??????? ????? ??????????? | | ##??????? ?????? ???????????? | | #??????? ?????? ????????????? | | * #??????? ?????????????????????? | | [[[ ##+##########? ! ?????????????????????? | | ?# [%[ # #? ?????????????????????? | | ??# [[ # """ # ????????????????????? | | ??# # Y" # ????????? ??????????? | | ??# # """ """ # ???????? ????????? | | ??# # """ ########???????/ ????????? | | ??# # """ ! #?#########???? ?????????? | | ??# # #?# #??? "???????? | | ### # """ #?# /#??? "???????? | | # """"" #?# #??? ???????? | | ! # """"" /#?# #### ????????? | | # #?# ! # ????????? | | == #! #?# # ??? ?????? | | =% ##########+###?# ! # " " " "????????? | | = #????????# #???# # " " " "????????? | | #??####### ##### # " " " " "??????? | +----------------------------------------------------+ Best States ------------- Heat Dissipation 38 Energy Generation 15 Energy Capacity 250 Matter Stores 300 Matter Capacity 300 Sight Range 16 Robot Scan Range 15 Terrain Scan Range 16 Terrain Scan Density 10 Corruption Containment 8 Armor Coverage 225 Evasion (%) 64 Targeting Accuracy 6 Recoil Reduction 4 Offensive Hacking 30 Item Schematics ----------------- Hacking Suite | -9/Materials | Scanalyzed Xenon Bombardment Thruster | -7/Factory | Scanalyzed Imp. Sensor Array | -7/Factory | Scanalyzed Mic. Nuclear Core | -7/Factory | Scanalyzed Adv. ECM Suite | -7/Factory | Scanalyzed Robot Schematics ------------------ None Fabricated ------------ Nothing Alien Tech Used ----------------- None Achievements -------------- Cya! GoHome() It Was An Accident, I Swear Party Time Remodeling Troublemaker Unlikely Earthworm Challenges ------------ None Game ------ Seed AdvancedFissionDoublenader Manual? 0 Play Time 01:38:12 Cumulative 6.8 hours Start 2024.04.13 @ 21:33:44 End 2024.04.13 @ 23:18:29 Sessions 1 Manual Loads 0 Difficulty Rogue Special Mode None Game No. 7 Rogue 7 Adventurer 0 Explorer 0 Win Type - Total 0 Types 0/0/0/0/0/0/0/0/0 Lore% 1 Gallery% 8 Achievement% 12 Wizard Run 0 Options --------- Layout 1 ASCII 0 Keyboard 0 Movement Mouse Keybinds 0 Fullscreen 1 Font 16/SmallcapsGlow Map View 50x35 Zoom Use 0% Tactical HUD 0 Map Filters NONE Filters NONE Steam SD RUN: 57ade6e1-bcaa-4c4c-8686-84227d5aee4f